fUST/lending_fUST_20260626
["ID","MTS","AMOUNT","RATE_DAILY","PERIOD"]
[426497377,1782481839000,-2877.72298537,0.00033538,7]
[426497380,1782481839000,-2877.72298537,0.00033538,7]
[426497382,1782481839000,-2877.72298537,0.00033538,7]
[426497389,1782481839000,-2877.72298537,0.00033538,7]
[426497385,1782481839000,-2877.72298537,0.00033538,7]
[426497383,1782481839000,-2877.72298537,0.00033538,7]
[426497381,1782481839000,-2877.72298537,0.00033538,7]
[426497379,1782481839000,-2877.72298537,0.00033538,7]
[426497375,1782481839000,-2877.72298537,0.00033538,7]
[426497384,1782481839000,-2877.72298537,0.00033538,7]
[426497445,1782481840000,-500.0,0.00036564,120]
[426497435,1782481840000,-379.0,0.00035095,120]
[426497437,1782481840000,-172.0,0.00035178,76]
[426497436,1782481840000,-165.567643,0.00035121,2]
[426497441,1782481840000,-160.57483804,0.00036,2]
[426497438,1782481840000,-223.40355335,0.00035364,2]
[426497443,1782481840000,-223.40355335,0.00036327,2]
[426497449,1782481840000,-500.0,0.00036838,120]
[426497439,1782481840000,-221.70826561,0.00035465,2]
[426497440,1782481840000,-443.41653121,0.00035901,2]
[426497450,1782481840000,-500.0,0.00036838,120]
[426497447,1782481840000,-968.594,0.00036564,120]
[426497451,1782481840000,-500.0,0.00036838,120]
[426497448,1782481840000,-290.0,0.00036728,120]
[426497446,1782481840000,-500.0,0.00036564,120]
[426497456,1782481840000,-445.0,0.00037171,2]
[426497442,1782481840000,-517.0,0.00036,2]
[426497434,1782481840000,-290.0,0.00034979,120]
[426497423,1782481840000,-1563.207685,0.00033539,7]
[426497429,1782481840000,-223.40355339,0.000344,2]
[426497453,1782481840000,-165.567643,0.00036876,2]
[426497413,1782481840000,-1000.0,0.00033539,120]
[426497414,1782481840000,-1000.0,0.00033539,120]
[426497416,1782481840000,-1000.0,0.00033539,120]
[426497415,1782481840000,-1000.0,0.00033539,120]
[426497419,1782481840000,-160.0,0.00033539,7]
[426497417,1782481840000,-78.19885136,0.00033539,120]
[426497418,1782481840000,-921.80114864,0.00033539,120]
[426497431,1782481840000,-1563.207685,0.00034502,7]
[426497420,1782481840000,-500.0,0.00033539,7]
[426497427,1782481840000,-220.1122027,0.00033813,7]
[426497426,1782481840000,-597.71375303,0.000338,120]
[426497425,1782481840000,-169.00222183,0.000338,120]
[426497424,1782481840000,-631.0,0.0003354,120]
[426497432,1782481840000,-1563.207685,0.00034502,7]
[426497422,1782481840000,-1563.207685,0.00033539,7]
[426497430,1782481840000,-1156.21,0.00034467,30]
[426497428,1782481840000,-417.15472785,0.00034,120]
[426497421,1782481840000,-150.73492651,0.00033539,2]
[426497452,1782481840000,-379.0,0.00036849,120]
[426497433,1782481840000,-7055.2110912,0.00034502,2]
[426497454,1782481840000,-517.0,0.00037,2]
[426497481,1782481840000,-500.0,0.0003803,30]
[426497477,1782481840000,-500.0,0.0003803,30]
[426497485,1782481840000,-568.40531378,0.00038031,30]
[426497479,1782481840000,-500.0,0.0003803,30]
[426497483,1782481840000,-500.0,0.0003803,30]
[426497480,1782481840000,-500.51092991,0.0003803,30]
[426497484,1782481840000,-299.25344153,0.00038031,7]
[426497490,1782481840000,-1000.0,0.00038356,120]
[426497478,1782481840000,-600.91434064,0.0003803,30]
[426497500,1782481840000,-424.83224788,0.00038885,30]
[426497491,1782481840000,-290.0,0.00038564,120]
[426497492,1782481840000,-165.567643,0.00038632,2]
[426497493,1782481840000,-288.3137906,0.00038666,2]
[426497496,1782481840000,-500.0,0.00038885,30]
[426497495,1782481840000,-299.25344153,0.00038792,7]
[426497494,1782481840000,-255.4643287,0.00038792,7]
[426497498,1782481840000,-500.0,0.00038885,30]
[426497455,1782481840000,-1065.0,0.00037171,2]
[426497489,1782481840000,-223.40355335,0.00038254,2]
[426497488,1782481840000,-500.0,0.00038031,30]
[426497499,1782481840000,-501.25086796,0.00038885,30]
[426497475,1782481840000,-500.0,0.0003803,30]
[426497487,1782481840000,-500.0,0.00038031,30]
[426497457,1782481840000,-196.908,0.00037171,2]
[426497460,1782481840000,-175.438797,0.00037471,61]
[426497459,1782481840000,-175.438797,0.00037471,2]
[426497473,1782481840000,-185.845,0.0003803,50]
[426497474,1782481840000,-500.0,0.0003803,30]
[426497470,1782481840000,-1563.207685,0.00038029,7]
[426497471,1782481840000,-1563.207685,0.00038029,7]
[426497462,1782481840000,-3952.4815955,0.00037664,2]
[426497458,1782481840000,-223.40355335,0.00037291,2]
[426497465,1782481840000,-417.15472785,0.00037982,2]
[426497464,1782481840000,-1563.207685,0.00037664,7]
[426497467,1782481840000,-3032.5850898,0.00037987,2]
[426497469,1782481840000,-1563.207685,0.00038029,7]
[426497463,1782481840000,-1563.207685,0.00037664,7]
[426497468,1782481840000,-517.0,0.00038,2]
[426497461,1782481840000,-175.438797,0.00037471,120]
[426497486,1782481840000,-172.0,0.00038031,14]
[426497476,1782481840000,-500.0,0.0003803,30]
[426497523,1782481841000,-500.0,0.00038984,30]
[426497524,1782481841000,-500.0,0.00038984,30]
[426497525,1782481841000,-500.0,0.00038984,30]
[426497526,1782481841000,-511.36,0.00038984,30]
[426497527,1782481841000,-524.027357,0.00038985,2]
[426497528,1782481841000,-524.027357,0.00038985,2]
[426497529,1782481841000,-524.027357,0.00038985,2]
[426497536,1782481841000,-524.027357,0.00038985,2]
[426497533,1782481841000,-524.027357,0.00038985,2]
[426497538,1782481841000,-524.027357,0.00038985,2]
[426497539,1782481841000,-524.027357,0.00038985,2]
[426497540,1782481841000,-524.027357,0.00038985,2]
[426497541,1782481841000,-524.027357,0.00038985,2]
[426497542,1782481841000,-524.027357,0.00038985,2]
[426497517,1782481841000,-500.0,0.00038887,30]
[426497535,1782481841000,-524.027357,0.00038985,2]
[426497531,1782481841000,-524.027357,0.00038985,2]
[426497522,1782481841000,-500.0,0.00038984,30]
[426497510,1782481841000,-417.15472785,0.00038885,30]
[426497520,1782481841000,-183.455842,0.00038887,30]
[426497537,1782481841000,-524.027357,0.00038985,2]
[426497503,1782481841000,-1563.207685,0.00033539,7]
[426497502,1782481841000,-1000.0,0.0003014,30]
[426497505,1782481841000,-1563.207685,0.00037664,7]
[426497515,1782481841000,-524.027357,0.00038886,2]
[426497504,1782481841000,-1563.207685,0.00034502,7]
[426497506,1782481841000,-1563.207685,0.00038029,7]
[426497521,1782481841000,-500.0,0.00038984,30]
[426497507,1782481841000,-177.80818125,0.00038286,2]
[426497512,1782481841000,-524.027357,0.00038886,2]
[426497511,1782481841000,-160.0,0.00038885,30]
[426497509,1782481841000,-75.16775212,0.00038885,30]
[426497514,1782481841000,-524.027357,0.00038886,2]
[426497518,1782481841000,-500.0,0.00038887,30]
[426497516,1782481841000,-536.84114936,0.00038887,30]
[426497519,1782481841000,-500.0,0.00038887,30]
[426497508,1782481841000,-379.0,0.00038692,120]
[426497543,1782481841000,-524.027357,0.00038985,2]
[426497513,1782481841000,-524.027357,0.00038886,2]
[426497547,1782481841000,-500.0,0.00038985,30]
[426497570,1782481841000,-898.40675796,0.00038986,120]
[426497563,1782481841000,-1000.0,0.00038986,120]
[426497567,1782481841000,-831.84036204,0.00038986,120]
[426497569,1782481841000,-101.59324204,0.00038986,120]
[426497572,1782481841000,-1563.207685,0.00038029,7]
[426497575,1782481841000,-1000.0,0.00038986,120]
[426497582,1782481841000,-511.6488593,0.00038987,120]
[426497566,1782481841000,-1000.0,0.00038986,120]
[426497571,1782481841000,-615.06350292,0.00038986,120]
[426497580,1782481841000,-1000.0,0.00038987,120]
[426497579,1782481841000,-1000.0,0.00038987,120]
[426497577,1782481841000,-263.06254007,0.00038986,120]
[426497581,1782481841000,-1000.0,0.00038987,120]
[426497576,1782481841000,-1000.0,0.00038986,120]
[426497578,1782481841000,-1000.0,0.00038987,120]
[426497544,1782481841000,-524.027357,0.00038985,2]
[426497574,1782481841000,-1000.0,0.00038986,120]
[426497562,1782481841000,-224.6665649,0.00038986,120]
[426497573,1782481841000,-384.93649708,0.00038986,120]
[426497565,1782481841000,-1000.0,0.00038986,120]
[426497568,1782481841000,-168.15963796,0.00038986,120]
[426497546,1782481841000,-629.44860555,0.00038985,30]
[426497550,1782481841000,-1000.0,0.00038986,120]
[426497549,1782481841000,-1000.0,0.00038986,120]
[426497545,1782481841000,-524.027348,0.00038985,2]
[426497548,1782481841000,-1000.0,0.00038986,120]
[426497551,1782481841000,-1000.0,0.00038986,120]
[426497554,1782481841000,-1000.0,0.00038986,120]
[426497552,1782481841000,-1000.0,0.00038986,120]
[426497564,1782481841000,-1000.0,0.00038986,120]
[426497555,1782481841000,-1000.0,0.00038986,120]
[426497561,1782481841000,-775.3334351,0.00038986,120]
[426497558,1782481841000,-1000.0,0.00038986,120]
[426497559,1782481841000,-1000.0,0.00038986,120]
[426497553,1782481841000,-1000.0,0.00038986,120]
[426497557,1782481841000,-1000.0,0.00038986,120]
[426497556,1782481841000,-1000.0,0.00038986,120]
[426497560,1782481841000,-1000.0,0.00038986,120]
[426497633,1782481844000,-1000.0,0.0003986,120]
[426497620,1782481844000,-881.9178514,0.00039802,2]
[426497614,1782481844000,-517.0,0.00039,2]
[426497619,1782481844000,-1117.0,0.000398,30]
[426497621,1782481844000,-500.0,0.00039848,30]
[426497623,1782481844000,-1137.95,0.00039851,3]
[426497632,1782481844000,-1000.0,0.0003986,120]
[426497613,1782481844000,-1901.0,0.00039,2]
[426497629,1782481844000,-1000.0,0.0003986,120]
[426497622,1782481844000,-2275.89,0.00039851,3]
[426497624,1782481844000,-568.97,0.00039851,3]
[426497625,1782481844000,-284.49,0.00039851,3]
[426497628,1782481844000,-500.0,0.0003986,30]
[426497626,1782481844000,-853.48,0.00039851,3]
[426497627,1782481844000,-500.0,0.0003986,30]
[426497631,1782481844000,-1000.0,0.0003986,120]
[426497616,1782481844000,-179.135747,0.00039635,21]
[426497634,1782481844000,-1000.0,0.0003986,120]
[426497615,1782481844000,-1480.153952,0.00039635,2]
[426497596,1782481844000,-167.5397068,0.00034502,7]
[426497618,1782481844000,-2000.0,0.0003972,21]
[426497595,1782481844000,-1563.207685,0.00033539,7]
[426497635,1782481844000,-1000.0,0.0003986,120]
[426497597,1782481844000,-600.0,0.00034502,7]
[426497599,1782481844000,-1563.207685,0.00037664,7]
[426497598,1782481844000,-795.6679782,0.00034502,7]
[426497601,1782481844000,-1563.207685,0.00038029,7]
[426497600,1782481844000,-1563.207685,0.00038029,7]
[426497602,1782481844000,-1563.207682,0.00038029,7]
[426497612,1782481844000,-269.0,0.00039,2]
[426497604,1782481844000,-1017.39518714,0.00038987,120]
[426497607,1782481844000,-500.0,0.00038987,30]
[426497605,1782481844000,-500.0,0.00038987,30]
[426497610,1782481844000,-500.0,0.00038999,30]
[426497609,1782481844000,-417.15472785,0.00038987,120]
[426497606,1782481844000,-500.0,0.00038987,30]
[426497608,1782481844000,-500.0,0.00038987,30]
[426497611,1782481844000,-952.52874201,0.00039,120]
[426497617,1782481844000,-4192.109933,0.00039635,2]
[426497603,1782481844000,-1000.0,0.00038987,120]
[426497637,1782481844000,-500.0,0.00039863,30]
[426497640,1782481844000,-589.71023031,0.00039863,120]
[426497645,1782481844000,-269.0,0.0004,2]
[426497666,1782481844000,-500.0,0.00040272,30]
[426497664,1782481844000,-500.0,0.00040272,30]
[426497661,1782481844000,-500.0,0.00040272,30]
[426497665,1782481844000,-500.0,0.00040272,30]
[426497667,1782481844000,-500.0,0.00040272,30]
[426497663,1782481844000,-500.0,0.00040272,30]
[426497636,1782481844000,-1000.0,0.0003986,120]
[426497668,1782481844000,-500.0,0.00040272,30]
[426497670,1782481844000,-500.0,0.00040272,30]
[426497669,1782481844000,-500.0,0.00040272,30]
[426497674,1782481844000,-196.7824714,0.00040279,2]
[426497673,1782481844000,-500.17497737,0.00040272,30]
[426497675,1782481844000,-151.0,0.000403,16]
[426497672,1782481844000,-637.91327966,0.00040272,30]
[426497676,1782481844000,-165.567643,0.00040388,2]
[426497678,1782481844000,-2000.0,0.0004039,2]
[426497677,1782481844000,-2000.0,0.0004039,2]
[426497662,1782481844000,-500.0,0.00040272,30]
[426497660,1782481844000,-500.0,0.00040272,30]
[426497671,1782481844000,-500.0,0.00040272,30]
[426497651,1782481844000,-186.0,0.00040171,2]
[426497657,1782481844000,-500.0,0.00040272,30]
[426497638,1782481844000,-500.0,0.00039863,30]
[426497641,1782481844000,-160.0,0.000399,3]
[426497639,1782481844000,-611.19490337,0.00039863,30]
[426497642,1782481844000,-299.25344153,0.00039933,7]
[426497644,1782481844000,-156.51100159,0.00039963,30]
[426497643,1782481844000,-500.0,0.00039963,30]
[426497647,1782481844000,-2000.0,0.0004006,2]
[426497649,1782481844000,-354.0,0.00040171,2]
[426497646,1782481844000,-517.0,0.0004,2]
[426497648,1782481844000,-2000.0,0.0004006,2]
[426497655,1782481844000,-500.0,0.00040272,30]
[426497650,1782481844000,-445.0,0.00040171,2]
[426497658,1782481844000,-500.0,0.00040272,30]
[426497652,1782481844000,-417.15472785,0.000402,120]
[426497653,1782481844000,-500.0,0.00040272,30]
[426497654,1782481844000,-500.0,0.00040272,30]
[426497656,1782481844000,-500.0,0.00040272,30]
[426497659,1782481844000,-500.0,0.00040272,30]
[426497681,1782481845000,-2000.0,0.00040399,2]
[426497680,1782481845000,-2000.0,0.00040399,2]
[426497682,1782481845000,-13249.94584449,0.000404,2]
[426497679,1782481845000,-2000.0,0.00040399,2]
[426497696,1782481849000,-1000.0,0.0003986,120]
[426497698,1782481849000,-1000.0,0.0003986,120]
[426497700,1782481849000,-847.279943,0.0003986,120]
[426497697,1782481849000,-1000.0,0.0003986,120]
[426497701,1782481850000,-152.720057,0.0003986,120]
[426497703,1782481850000,-1000.0,0.0003986,120]
[426497704,1782481850000,-1000.0,0.0003986,120]
[426497702,1782481850000,-1000.0,0.0003986,120]
[426497711,1782481850000,-1000.0,0.0003986,120]
[426497710,1782481850000,-1000.0,0.0003986,120]
[426497706,1782481850000,-1000.0,0.0003986,120]
[426497705,1782481850000,-1000.0,0.0003986,120]
[426497708,1782481850000,-1000.0,0.0003986,120]
[426497709,1782481850000,-1000.0,0.0003986,120]
[426497707,1782481850000,-1000.0,0.0003986,120]
[426497719,1782481850000,-151.0,0.000404,18]
[426497716,1782481850000,-1000.0,0.0003986,120]
[426497717,1782481850000,-488.3511407,0.0003986,120]
[426497720,1782481850000,-195.87034766,0.000404,2]
[426497721,1782481850000,-352.5666258,0.000404,2]
[426497718,1782481850000,-616797.33305551,0.000404,2]
[426497722,1782481850000,-1005.0,0.00040441,14]
[426497713,1782481850000,-1000.0,0.0003986,120]
[426497715,1782481850000,-1000.0,0.0003986,120]
[426497714,1782481850000,-1000.0,0.0003986,120]
[426497723,1782481850000,-80061.06084153,0.00040444,30]
[426497712,1782481850000,-1000.0,0.0003986,120]
[426497724,1782481892000,161.0,0.00029699,36]
[426497732,1782482140000,150.033362,0.00030107,30]
[426497733,1782482175000,1643.53251796,0.00029051,120]
[426497734,1782482188000,1809.22648064,0.00029051,120]
[426497735,1782482193000,296.30516686,0.00029051,120]
[426497736,1782482196000,199.001099,0.00029051,120]
[426497739,1782482223000,215.92863685,0.00029051,120]
[426497741,1782482232000,1535.9408726,0.00029051,120]
[426497742,1782482233000,989.35332343,0.00029051,120]
[426497743,1782482243000,746.84908222,0.00029051,120]
[426497745,1782482244000,221.76807196,0.00029051,30]
[426497744,1782482244000,1225.09105162,0.00029051,60]
[426497746,1782482245000,5217.33601732,0.00029051,30]
[426497747,1782482246000,1876.46525361,0.00029051,120]
[426497750,1782482248000,747.05990428,0.00017,120]
[426497749,1782482248000,1474.24503477,0.00029051,120]
[426497748,1782482248000,1194.67574948,0.00029051,120]
[426497751,1782482251000,1088.74597915,0.00029051,120]
[426497753,1782482251000,1637.67496065,0.00029051,120]
[426497752,1782482251000,1555.63424513,0.00029051,120]
[426497754,1782482252000,15522.32795812,7.6e-05,2]
[426497756,1782482253000,232.44273038,0.00029051,120]
[426497755,1782482253000,564.07716527,0.00029051,120]
[426497758,1782482254000,177.80441988,0.00025,30]
[426497757,1782482254000,341.04375499,0.00029051,120]
[426497759,1782482256000,779.83722016,0.00029051,120]
[426497761,1782482256000,539.87557864,0.00025,120]
[426497760,1782482256000,300.0,0.00025,30]
[426497762,1782482257000,974.17933942,0.00029051,120]
[426497767,1782482259000,381.08599397,0.00029051,120]
[426497766,1782482259000,3748.88503276,0.00012,2]
[426497765,1782482259000,451.05514058,0.00025,120]
[426497772,1782482260000,183.66261459,0.00029051,120]
[426497769,1782482260000,1899.39593522,0.00029051,120]
[426497768,1782482260000,370.71115132,0.00029051,120]
[426497775,1782482261000,525.48755092,0.00029051,120]
[426497777,1782482261000,286.38600625,0.00029051,120]
[426497779,1782482261000,205.90604187,0.00029051,120]
[426497781,1782482261000,200.0,0.000245,120]
[426497780,1782482261000,242.53686653,0.00029051,120]
[426497782,1782482262000,168.39589881,0.00029051,120]
[426497785,1782482263000,1246.04279396,0.00029051,120]
[426497784,1782482263000,201.45764489,0.00029051,30]
[426497786,1782482264000,200.0,0.00029051,120]
[426497787,1782482265000,1009.56427548,0.00029051,120]
[426497789,1782482265000,1136.70748006,0.00029051,120]
[426497788,1782482265000,164.25404654,0.00029051,120]
[426497790,1782482266000,501.70315371,0.00029051,120]
[426497793,1782482268000,2000.0,0.00029051,120]
[426497792,1782482268000,244.86589075,0.00024,120]
[426497791,1782482268000,364.75371406,0.00029051,120]
[426497795,1782482269000,313.16607537,0.00029051,120]
[426497827,1782482454000,-433.45811007,0.00011682,2]
[426497829,1782482470000,-3910.72419485,0.000118,5]
[426497830,1782482487000,-433.45811007,0.000118,5]
[426497831,1782482504000,-3910.72419485,0.000118,5]
[426497832,1782482521000,-433.45811007,0.000118,5]
[426497833,1782482538000,-2306.06356411,0.000118,5]
[426497834,1782482554000,-2038.11874081,0.00011898,2]
[426497837,1782482662000,160.0,0.00029114,30]
[426497838,1782482722000,-500.0,0.00011996,2]
[426497839,1782482722000,-500.0,0.00011996,2]
[426497840,1782482722000,-500.0,0.00011996,2]
[426497841,1782482722000,-500.0,0.00011996,2]
[426497845,1782482723000,-500.0,0.00011996,2]
[426497844,1782482723000,-500.0,0.00011996,2]
[426497843,1782482723000,-500.0,0.00011996,2]
[426497842,1782482723000,-500.0,0.00011996,2]
[426497846,1782482726000,-235.00803417,0.00011996,2]
[426497848,1782482727000,-500.0,0.00011996,2]
[426497847,1782482727000,-264.99196583,0.00011996,2]
[426497851,1782482727000,-263.27971657,0.00011996,2]
[426497850,1782482727000,-500.0,0.00011996,2]
[426497852,1782482727000,-498.50949504,0.00011996,2]
[426497849,1782482727000,-500.0,0.00011996,2]
[426497855,1782482759000,162.783434,0.00021333,120]
[426497853,1782482759000,162.783434,0.00021333,61]
[426497863,1782482764000,417.15472785,0.00029114,30]
[426497864,1782482797000,-5067.53,0.00012,2]
[426497865,1782482833000,4000.0,0.00030136,30]
[426497866,1782482854000,-7666.6,0.00012,2]
[426497868,1782483002000,-3495.96410952,0.0001188,2]
[426497869,1782483002000,-15.63289048,0.0001188,2]
[426497883,1782483033000,-1374.73926062,0.00012,2]
[426497882,1782483033000,-232.28100055,0.00012,2]
[426497881,1782483033000,-201.17710952,0.0001188,2]
[426498112,1782483038000,-5006.22165755,0.00013,2]
[426498103,1782483038000,-500.0,0.00012997,2]
[426498107,1782483038000,-500.0,0.00012997,2]
[426498116,1782483038000,-815.96478965,0.00013,2]
[426498110,1782483038000,-500.0,0.00012997,2]
[426498126,1782483038000,-152.0,0.00013,2]
[426498095,1782483038000,-500.0,0.00012997,2]
[426498101,1782483038000,-500.0,0.00012997,2]
[426498130,1782483038000,-207.9647896,0.00013,2]
[426498125,1782483038000,-815.96478965,0.00013,2]
[426498120,1782483038000,-815.96478965,0.00013,2]
[426498122,1782483038000,-815.96478965,0.00013,2]
[426498121,1782483038000,-815.96478965,0.00013,2]
[426498098,1782483038000,-500.0,0.00012997,2]
[426498124,1782483038000,-815.96478965,0.00013,2]
[426498123,1782483038000,-815.96478965,0.00013,2]
[426498128,1782483038000,-152.0,0.00013,2]
[426498132,1782483038000,-384.7279943,0.00013,2]
[426498127,1782483038000,-152.0,0.00013,2]
[426498114,1782483038000,-815.96478965,0.00013,2]
[426498129,1782483038000,-152.0,0.00013,2]
[426498118,1782483038000,-815.96478965,0.00013,2]
[426498092,1782483038000,-500.0,0.00012997,2]
[426498105,1782483038000,-500.0,0.00012997,2]
[426498093,1782483038000,-500.0,0.00012997,2]
[426498078,1782483038000,-500.0,0.00012997,2]
[426498090,1782483038000,-500.0,0.00012997,2]
[426498068,1782483038000,-500.0,0.00012997,2]
[426498066,1782483038000,-548.10294071,0.00012,2]
[426498070,1782483038000,-539.43295507,0.00012997,2]
[426498069,1782483038000,-195.91996851,0.00012997,2]
[426498080,1782483038000,-500.0,0.00012997,2]
[426498081,1782483038000,-500.0,0.00012997,2]
[426498071,1782483038000,-500.0,0.00012997,2]
[426498072,1782483038000,-500.0,0.00012997,2]
[426498075,1782483038000,-500.0,0.00012997,2]
[426498073,1782483038000,-500.0,0.00012997,2]
[426498083,1782483038000,-500.0,0.00012997,2]
[426498077,1782483038000,-498.75492907,0.00012997,2]
[426498074,1782483038000,-500.0,0.00012997,2]
[426498079,1782483038000,-500.0,0.00012997,2]
[426498085,1782483038000,-500.0,0.00012997,2]
[426498082,1782483038000,-500.0,0.00012997,2]
[426498084,1782483038000,-500.0,0.00012997,2]
[426498086,1782483038000,-500.0,0.00012997,2]
[426498088,1782483038000,-500.0,0.00012997,2]
[426498091,1782483038000,-500.0,0.00012997,2]
[426498089,1782483038000,-500.0,0.00012997,2]
[426498087,1782483038000,-500.0,0.00012997,2]
[426498076,1782483038000,-500.0,0.00012997,2]
[426498108,1782483038000,-500.0,0.00012997,2]
[426498180,1782483038000,-13045.18150269,0.0002465,2]
[426498143,1782483038000,-500.0,0.00013698,2]
[426498169,1782483038000,-2655.50573694,0.00024647,2]
[426498166,1782483038000,-2655.50573694,0.00024647,2]
[426498131,1782483038000,-384.7279943,0.00013,2]
[426498164,1782483038000,-2655.50573694,0.00024647,2]
[426498161,1782483038000,-2655.50573694,0.00024647,2]
[426498170,1782483038000,-2655.50573694,0.00024647,2]
[426498167,1782483038000,-2655.50573694,0.00024647,2]
[426498158,1782483038000,-2655.50573694,0.00024647,2]
[426498163,1782483038000,-2655.50573694,0.00024647,2]
[426498160,1782483038000,-2655.50573694,0.00024647,2]
[426498168,1782483038000,-2655.50573694,0.00024647,2]
[426498177,1782483038000,-502.13805447,0.00024649,2]
[426498178,1782483038000,-9235.58793697,0.0002465,2]
[426498172,1782483038000,-2655.50573694,0.00024647,2]
[426498181,1782483038000,-5711.63759164,0.0002465,2]
[426498173,1782483038000,-2655.50573694,0.00024647,2]
[426498171,1782483038000,-2655.50573694,0.00024647,2]
[426498179,1782483038000,-584.02902103,0.0002465,2]
[426498183,1782483038000,-24.06832177,0.0002589,18]
[426498175,1782483038000,-245.89,0.00024649,2]
[426498174,1782483038000,-2655.50573694,0.00024647,2]
[426498176,1782483038000,-500.0,0.00024649,2]
[426498182,1782483038000,-394.29408659,0.00025565,7]
[426498165,1782483038000,-2655.50573694,0.00024647,2]
[426498159,1782483038000,-2655.50573694,0.00024647,2]
[426498153,1782483038000,-185.845,0.00023874,5]
[426498149,1782483038000,-191.2891342,0.00021,2]
[426498133,1782483038000,-384.7279943,0.00013,2]
[426498137,1782483038000,-384.7279943,0.00013,2]
[426498146,1782483038000,-1000.0,0.00019721,2]
[426498157,1782483038000,-355.61,0.0002464,3]
[426498144,1782483038000,-264.52898215,0.00015,2]
[426498152,1782483038000,-164.31231554,0.00023649,2]
[426498162,1782483038000,-2655.50573694,0.00024647,2]
[426498142,1782483038000,-500.0,0.00013698,2]
[426498145,1782483038000,-152.2398402,0.00019,20]
[426498140,1782483038000,-384.7279943,0.00013,2]
[426498139,1782483038000,-384.7279943,0.00013,2]
[426498134,1782483038000,-384.7279943,0.00013,2]
[426498156,1782483038000,-711.21,0.0002464,3]
[426498150,1782483038000,-162.783434,0.00021333,2]
[426498154,1782483038000,-262.86272438,0.00024145,7]
[426498138,1782483038000,-384.7279943,0.00013,2]
[426498141,1782483038000,-2526.78117744,0.00013,2]
[426498155,1782483038000,-1422.43,0.0002464,3]
[426498147,1782483038000,-189.6006997,0.00020334,2]
[426498151,1782483038000,-1238.00768301,0.00023,2]
[426498148,1782483038000,-1396.7918558,0.000205,2]
[426498136,1782483038000,-384.7279943,0.00013,2]
[426498135,1782483038000,-384.7279943,0.00013,2]
[426498194,1782483040000,-1328.57549781,0.0002601,3]
[426498193,1782483040000,-1516.28450219,0.0002601,3]
[426498192,1782483040000,-232.93167823,0.0002589,18]
[426498196,1782483040000,-711.22,0.0002601,3]
[426498195,1782483040000,-1422.42,0.0002601,3]
[426498198,1782483040000,-16.4549559,0.000279,2]
[426498197,1782483040000,-1537.5720441,0.000279,2]
[426498200,1782483040000,-593.0,0.000292,2]
[426498201,1782483040000,-475.54506539,0.00030137,30]
[426498199,1782483040000,-1554.02,0.000279,2]
[426498206,1782483040000,-417.15472785,0.00031798,2]
[426498204,1782483040000,-1347.6164,0.000314,20]
[426498210,1782483040000,-174.0,0.00033822,120]
[426498211,1782483040000,-163.0,0.00033989,120]
[426498205,1782483040000,-160.0,0.00031798,2]
[426498208,1782483040000,-163.0,0.00032371,120]
[426498202,1782483040000,-160.0,0.00031052,2]
[426498212,1782483040000,-92.70885086,0.00034501,30]
[426498207,1782483040000,-174.0,0.00032212,120]
[426498209,1782483040000,-500.0,0.00033538,30]
[426498203,1782483040000,-161.0,0.0003137,46]
[426498267,1782483049000,-163.0,0.00035689,120]
[426498297,1782483049000,-174.0,0.00039154,120]
[426498289,1782483049000,-445.0,0.00038611,2]
[426498285,1782483049000,-151.0,0.00038106,7]
[426498304,1782483049000,-160.21566131,0.00040241,30]